[Event "56th Biel Festival MTO 2023"]
[White "Misiano,Franco"]
[Black "Hornung,Hans"]
[Site "Biel"]
[Round "7.41"]
[Annotator "ChessBase"]
[Result "1/2-1/2"]
[Date "2023.07.25"]
[WhiteElo "2133"]
[BlackElo "2047"]
[PlyCount "59"]
[TimeControl "60"]

1. e4 {[%emt 0:0:0]} e5 {[%emt 0:0:0]} 2. Nc3 {[%emt 0:0:0]} Nf6 {[%emt 0:0:0]} 3. Bc4 {[%emt 0:0:0]} Nxe4 {[%emt 0:0:0]} 4. Qh5 {[%emt 0:0:0]} Nd6 {[%emt 0:0:0]} 5. Qxe5+ {[%emt 0:0:0]} Qe7 {[%emt 0:0:0]} 6. Qxe7+ {[%emt 0:0:0]} Bxe7 {[%emt 0:0:0]} 7. Bb3 {[%emt 0:0:0]} O-O {[%emt 0:0:0]} 8. Nf3 {[%emt 0:0:0]} Nf5 {[%emt 0:2:12]} 9. O-O {[%emt 0:0:0]} c6 {[%emt 0:5:58]} 10. d4 {[%emt 0:0:0]} d5 {[%emt 0:0:27]} 11. Ne2 {[%emt 0:0:0]} Nd6 {[%emt 0:5:10]} 12. Ng3 {[%emt 0:0:0]} f5 {[%emt 0:19:7]} 13. Bf4 {[%emt 0:0:0]} Ne4 {[%emt 0:4:2]} 14. Rfe1 {[%emt 0:3:28]} Kh8 {[%emt 0:1:50]} 15. c3 {[%emt 0:2:31]} Nd7 {[%emt 0:3:10]} 16. a4 {[%emt 0:5:54]} Ndf6 {[%emt 0:6:59]} 17. h3 {[%emt 0:0:55]} Be6 {[%emt 0:5:25]} 18. Ng5 {[%emt 0:0:58]} Bd7 {[%emt 0:1:27]} 19. Nf3 {[%emt 0:6:22]} Rae8 {[%emt 0:1:10]} 20. Ne5 {[%emt 0:1:13]} Bc8 {[%emt 0:0:25]} 21. Nxe4 {[%emt 0:5:37]} fxe4 {[%emt 0:1:10]} 22. Bh2 {[%emt 0:0:39]} Nh5 {[%emt 0:4:14]} 23. c4 {[%emt 0:0:51]} Be6 {[%emt 0:1:54]} 24. cxd5 {[%emt 0:0:35]} cxd5 {[%emt 0:0:52]} 25. Rxe4 {[%emt 0:0:12]} dxe4 {[%emt 0:0:43]} 26. Bxe6 {[%emt 0:0:16]} Bh4 {[%emt 0:4:40]} 27. Nf7+ {[%emt 0:0:57]} Kg8 {[%emt 0:1:40]} 28. Nh6+ {[%emt 0:0:13]} Kh8 {[%emt 0:0:13]} 29. Nf7+ {[%emt 0:0:8]} Kg8 {[%emt 0:0:8]} 30. Nh6+ {[%emt 0:0:8]} 1/2-1/2

[Event "56th Biel Festival MTO 2023"]
[White "Gemelli,Romain"]
[Black "Coles,Robin"]
[Site "Biel"]
[Round "7.42"]
[Annotator "ChessBase"]
[Result "1-0"]
[Date "2023.07.25"]
[WhiteElo "2122"]
[BlackElo "2070"]
[PlyCount "95"]
[TimeControl "60"]

1. d4 {[%emt 0:0:0]} d5 {[%emt 0:0:0]} 2. c4 {[%emt 0:0:0]} e6 {[%emt 0:0:0]} 3. Nf3 {[%emt 0:0:0]} Nf6 {[%emt 0:0:0]} 4. g3 {[%emt 0:0:0]} Be7 {[%emt 0:0:0]} 5. Bg2 {[%emt 0:0:0]} O-O {[%emt 0:0:0]} 6. O-O {[%emt 0:0:0]} c6 {[%emt 0:0:0]} 7. Qc2 {[%emt 0:0:0]} b6 {[%emt 0:0:0]} 8. Nbd2 {[%emt 0:0:0]} Bb7 {[%emt 0:0:0]} 9. e4 {[%emt 0:0:0]} Na6 {[%emt 0:0:0]} 10. a3 {[%emt 0:0:0]} c5 {[%emt 0:2:10]} 11. exd5 {[%emt 0:0:0]} exd5 {[%emt 0:0:46]} 12. dxc5 {[%emt 0:0:0]} bxc5 {[%emt 0:3:21]} 13. cxd5 {[%emt 0:0:0]} Bxd5 {[%emt 0:2:39]} 14. Nc4 {[%emt 0:0:0]} Be4 {[%emt 0:8:23]} 15. Qa4 {[%emt 0:0:46]} Qc8 {[%emt 0:2:54]} 16. Re1 {[%emt 0:8:36]} Bc6 {[%emt 0:14:28]} 17. Qc2 {[%emt 0:2:11]} Re8 {[%emt 0:0:24]} 18. Bg5 {[%emt 0:8:57]} h6 {[%emt 0:8:55]} 19. Bf4 {[%emt 0:5:57]} Bf8 {[%emt 0:4:23]} 20. Rxe8 {[%emt 0:5:49]} Qxe8 {[%emt 0:1:19]} 21. Re1 {[%emt 0:0:51]} Qd8 {[%emt 0:11:6]} 22. Rd1 {[%emt 0:4:41]} Qe7 {[%emt 0:4:11]} 23. Bd6 {[%emt 0:8:12]} Qe4 {[%emt 0:1:27]} 24. Qxe4 {[%emt 0:1:40]} Bxe4 {[%emt 0:0:22]} 25. Bxf8 {[%emt 0:0:57]} Kxf8 {[%emt 0:1:8]} 26. Rd6 {[%emt 0:1:9]} Nc7 {[%emt 0:1:41]} 27. Nfe5 {[%emt 0:1:13]} Bxg2 {[%emt 0:5:7]} 28. Kxg2 {[%emt 0:0:16]} Ne6 {[%emt 0:2:11]} 29. Ra6 {[%emt 0:1:26]} Nd5 {[%emt 0:6:23]} 30. Ra5 {[%emt 0:3:44]} f6 {[%emt 0:4:42]} 31. Nd7+ {[%emt 0:1:42]} Ke7 {[%emt 0:0:48]} 32. Nxc5 {[%emt 0:3:19]} Nec7 {[%emt 0:0:38]} 33. Na6 {[%emt 0:4:27]} Kd7 {[%emt 0:4:30]} 34. Nxc7 {[%emt 0:1:6]} Nxc7 {[%emt 0:0:21]} 35. b4 {[%emt 0:0:51]} Kc6 {[%emt 0:1:31]} 36. Rc5+ {[%emt 0:0:50]} Kd7 {[%emt 0:0:32]} 37. Kf3 {[%emt 0:2:24]} Re8 {[%emt 0:0:35]} 38. Ne3 {[%emt 0:3:4]} a6 {[%emt 0:2:43]} 39. Nf5 {[%emt 0:3:50]} Rg8 {[%emt 0:2:1]} 40. h4 {[%emt 0:2:18]} h5 {[%emt 0:2:8]} 41. Ne7 {[%emt 0:37:6]} Re8 {[%emt 0:34:28]} 42. Ng6 {[%emt 0:0:32]} Nb5 {[%emt 0:1:18]} 43. Rxh5 {[%emt 0:3:18]} Nxa3 {[%emt 0:0:10]} 44. Ra5 {[%emt 0:0:8]} Nc2 {[%emt 0:0:27]} 45. Rxa6 {[%emt 0:0:5]} Nxb4 {[%emt 0:0:7]} 46. Ra7+ {[%emt 0:0:5]} Ke6 {[%emt 0:0:6]} 47. Nf4+ {[%emt 0:0:26]} Kd6 {[%emt 0:0:10]} 48. Rxg7 {[%emt 0:0:8]} 1-0

[Event "56th Biel Festival MTO 2023"]
[White "Adam,Rafael"]
[Black "Jaivardhan Raj"]
[Site "Biel"]
[Round "7.43"]
[Annotator "ChessBase"]
[Result "1-0"]
[Date "2023.07.25"]
[WhiteElo "2117"]
[BlackElo "2009"]
[PlyCount "97"]
[TimeControl "60"]

1. d4 {[%emt 0:0:0]} Nf6 {[%emt 0:0:0]} 2. c4 {[%emt 0:0:0]} e6 {[%emt 0:0:0]} 3. g3 {[%emt 0:0:0]} Bb4+ {[%emt 0:0:0]} 4. Nc3 {[%emt 0:0:0]} O-O {[%emt 0:0:0]} 5. Bg2 {[%emt 0:0:0]} d5 {[%emt 0:0:0]} 6. a3 {[%emt 0:0:0]} Bxc3+ {[%emt 0:0:0]} 7. bxc3 {[%emt 0:0:0]} c6 {[%emt 0:0:0]} 8. Nf3 {[%emt 0:0:0]} b6 {[%emt 0:0:0]} 9. Nd2 {[%emt 0:0:0]} Ba6 {[%emt 0:2:47]} 10. O-O {[%emt 0:0:0]} dxc4 {[%emt 0:2:16]} 11. a4 {[%emt 0:0:0]} Nd5 {[%emt 0:1:32]} 12. Qc2 {[%emt 0:0:0]} b5 {[%emt 0:1:19]} 13. Ba3 {[%emt 0:0:38]} Re8 {[%emt 0:0:31]} 14. Ne4 {[%emt 0:10:10]} Qd7 {[%emt 0:7:58]} 15. Rfb1 {[%emt 0:6:46]} bxa4 {[%emt 0:5:28]} 16. Qxa4 {[%emt 0:33:10]} Bb5 {[%emt 0:2:28]} 17. Qc2 {[%emt 0:0:41]} a6 {[%emt 0:1:36]} 18. Nd6 {[%emt 0:11:7]} Rd8 {[%emt 0:0:34]} 19. e4 {[%emt 0:0:15]} Nb6 {[%emt 0:11:26]} 20. e5 {[%emt 0:0:41]} Nd5 {[%emt 0:2:16]} 21. Be4 {[%emt 0:1:5]} f5 {[%emt 0:3:32]} 22. exf6 {[%emt 0:16:29]} gxf6 {[%emt 0:0:58]} 23. Bg2 {[%emt 0:3:7]} Qc7 {[%emt 0:8:9]} 24. Ne4 {[%emt 0:1:16]} Qg7 {[%emt 0:6:19]} 25. Nc5 {[%emt 0:6:0]} Re8 {[%emt 0:0:58]} 26. Re1 {[%emt 0:0:31]} Nc7 {[%emt 0:6:15]} 27. Bh3 {[%emt 0:4:6]} f5 {[%emt 0:0:21]} 28. Re2 {[%emt 0:1:39]} Nd7 {[%emt 0:1:56]} 29. Rae1 {[%emt 0:0:25]} Nxc5 {[%emt 0:1:28]} 30. Bxc5 {[%emt 0:0:7]} Qh6 {[%emt 0:4:18]} 31. Bg2 {[%emt 0:0:57]} Nd5 {[%emt 0:1:49]} 32. Re5 {[%emt 0:4:8]} a5 {[%emt 0:2:0]} 33. Ba3 {[%emt 0:0:11]} Rab8 {[%emt 0:1:59]} 34. Bd6 {[%emt 0:0:55]} Rbd8 {[%emt 0:0:46]} 35. Ba3 {[%emt 0:0:36]} Rb8 {[%emt 0:2:28]} 36. Bc1 {[%emt 0:0:26]} Qg6 {[%emt 0:0:30]} 37. Qb2 {[%emt 0:1:44]} Kf7 {[%emt 0:2:33]} 38. Qa3 {[%emt 0:0:14]} a4 {[%emt 0:2:27]} 39. Bd2 {[%emt 0:1:22]} Ra8 {[%emt 0:2:56]} 40. Qc5 {[%emt 0:1:3]} Qf6 {[%emt 0:8:6]} 41. Bf3 {[%emt 0:0:0]} Qg6 {[%emt 0:0:0]} 42. h4 {[%emt 0:0:0]} Rab8 {[%emt 0:0:0]} 43. h5 {[%emt 0:0:9]} Qf6 {[%emt 0:0:0]} 44. h6 {[%emt 0:0:24]} Qg6 {[%emt 0:0:4]} 45. Qa7+ {[%emt 0:1:50]} Kf6 {[%emt 0:8:32]} 46. Bh5 {[%emt 0:6:34]} Qg8 {[%emt 0:0:34]} 47. Qd7 {[%emt 0:1:59]} Nc7 {[%emt 0:8:47]} 48. Qxc7 {[%emt 0:0:25]} Re7 {[%emt 0:0:49]} 49. Rxf5+ {[%emt 0:0:31]} 1-0

[Event "56th Biel Festival MTO 2023"]
[White "Rotunno,Flavio"]
[Black "Ludwig,Peter"]
[Site "Biel"]
[Round "7.44"]
[Annotator "ChessBase"]
[Result "0-1"]
[Date "2023.07.25"]
[WhiteElo "2005"]
[BlackElo "2147"]
[PlyCount "79"]
[TimeControl "60"]

1. d4 {[%emt 0:0:0]} Nf6 {[%emt 0:0:0]} 2. c4 {[%emt 0:0:0]} e6 {[%emt 0:0:0]} 3. Nf3 {[%emt 0:0:0]} Bb4+ {[%emt 0:0:0]} 4. Nbd2 {[%emt 0:0:0]} d5 {[%emt 0:0:0]} 5. e3 {[%emt 0:0:0]} O-O {[%emt 0:0:0]} 6. a3 {[%emt 0:0:0]} Bd6 {[%emt 0:3:5]} 7. Bd3 {[%emt 0:0:22]} b6 {[%emt 0:0:25]} 8. e4 {[%emt 0:13:55]} dxe4 {[%emt 0:0:30]} 9. Nxe4 {[%emt 0:0:5]} Nbd7 {[%emt 0:1:15]} 10. Nxd6 {[%emt 0:7:30]} cxd6 {[%emt 0:0:6]} 11. O-O {[%emt 0:0:29]} e5 {[%emt 0:9:21]} 12. dxe5 {[%emt 0:15:17]} dxe5 {[%emt 0:5:29]} 13. Be2 {[%emt 0:6:27]} Qc7 {[%emt 0:7:30]} 14. b3 {[%emt 0:12:30]} Bb7 {[%emt 0:0:52]} 15. Bb2 {[%emt 0:1:36]} Rad8 {[%emt 0:2:54]} 16. Qc2 {[%emt 0:1:59]} e4 {[%emt 0:12:37]} 17. Nd4 {[%emt 0:9:48]} Ne5 {[%emt 0:6:46]} 18. h3 {[%emt 0:11:1]} Ng6 {[%emt 0:9:47]} 19. Nf5 {[%emt 0:5:21]} Qf4 {[%emt 0:1:42]} 20. Ne3 {[%emt 0:3:19]} Ne5 {[%emt 0:2:38]} 21. Bxe5 {[%emt 0:3:56]} Qxe5 {[%emt 0:0:22]} 22. Rfd1 {[%emt 0:0:37]} Rd7 {[%emt 0:8:44]} 23. Rxd7 {[%emt 0:1:31]} Nxd7 {[%emt 0:0:6]} 24. Rd1 {[%emt 0:0:11]} Nc5 {[%emt 0:0:17]} 25. b4 {[%emt 0:1:9]} Ne6 {[%emt 0:0:6]} 26. Qd2 {[%emt 0:3:20]} Qg5 {[%emt 0:5:51]} 27. Nd5 {[%emt 0:2:3]} Qh4 {[%emt 0:5:24]} 28. Qe3 {[%emt 0:1:19]} f5 {[%emt 0:1:7]} 29. Qg3 {[%emt 0:0:16]} Qxg3 {[%emt 0:2:28]} 30. fxg3 {[%emt 0:0:4]} Kf7 {[%emt 0:0:3]} 31. Nxb6 {[%emt 0:0:34]} axb6 {[%emt 0:1:37]} 32. Rd7+ {[%emt 0:0:4]} Kf6 {[%emt 0:0:4]} 33. Rxb7 {[%emt 0:0:3]} Ra8 {[%emt 0:0:14]} 34. Rxb6 {[%emt 0:0:40]} Rxa3 {[%emt 0:0:6]} 35. c5 {[%emt 0:1:51]} Ke5 {[%emt 0:0:7]} 36. Kh2 {[%emt 0:0:40]} Nd4 {[%emt 0:0:38]} 37. Bb5 {[%emt 0:0:24]} Ra2 {[%emt 0:1:3]} 38. Kg1 {[%emt 0:0:36]} e3 {[%emt 0:1:9]} 39. Rb8 {[%emt 0:0:19]} Nxb5 {[%emt 0:1:4]} 40. Kf1 {[%emt 0:0:32]} 0-1

[Event "56th Biel Festival MTO 2023"]
[White "Stijve,Niels"]
[Black "Ozcan,Kaan"]
[Site "Biel"]
[Round "7.45"]
[Annotator "ChessBase"]
[Result "1/2-1/2"]
[Date "2023.07.25"]
[WhiteElo "2088"]
[BlackElo "2196"]
[PlyCount "85"]
[TimeControl "60"]

1. e4 {[%emt 0:0:0]} e5 {[%emt 0:0:0]} 2. Nf3 {[%emt 0:0:0]} Nc6 {[%emt 0:0:0]} 3. d4 {[%emt 0:0:0]} exd4 {[%emt 0:0:0]} 4. Bc4 {[%emt 0:0:0]} d6 {[%emt 0:0:0]} 5. Nxd4 {[%emt 0:0:0]} Nxd4 {[%emt 0:0:0]} 6. Qxd4 {[%emt 0:0:0]} Qf6 {[%emt 0:0:0]} 7. Qd3 {[%emt 0:4:19]} c6 {[%emt 0:5:4]} 8. Nc3 {[%emt 0:15:40]} Be6 {[%emt 0:0:59]} 9. Be3 {[%emt 0:1:33]} Be7 {[%emt 0:11:53]} 10. a4 {[%emt 0:10:37]} Bxc4 {[%emt 0:9:19]} 11. Qxc4 {[%emt 0:3:34]} Qe6 {[%emt 0:0:58]} 12. Qd3 {[%emt 0:5:41]} Nf6 {[%emt 0:1:0]} 13. f3 {[%emt 0:1:58]} O-O {[%emt 0:4:44]} 14. O-O {[%emt 0:4:32]} Rfd8 {[%emt 0:3:38]} 15. Rfd1 {[%emt 0:7:31]} d5 {[%emt 0:5:7]} 16. exd5 {[%emt 0:0:53]} Nxd5 {[%emt 0:0:54]} 17. Nxd5 {[%emt 0:2:35]} Rxd5 {[%emt 0:7:40]} 18. Qb3 {[%emt 0:1:39]} Rdd8 {[%emt 0:12:5]} 19. Qxe6 {[%emt 0:14:13]} fxe6 {[%emt 0:0:9]} 20. Rxd8+ {[%emt 0:0:15]} Rxd8 {[%emt 0:0:52]} 21. Bxa7 {[%emt 0:2:45]} Rd2 {[%emt 0:3:7]} 22. Re1 {[%emt 0:2:10]} Rxc2 {[%emt 0:1:55]} 23. Rxe6 {[%emt 0:1:29]} Kf7 {[%emt 0:0:12]} 24. Re4 {[%emt 0:5:44]} Rxb2 {[%emt 0:0:26]} 25. Rc4 {[%emt 0:3:5]} Rb4 {[%emt 0:3:36]} 26. Rxb4 {[%emt 0:1:54]} Bxb4 {[%emt 0:0:12]} 27. Kf2 {[%emt 0:0:5]} Ke6 {[%emt 0:0:17]} 28. Ke3 {[%emt 0:1:5]} Kd5 {[%emt 0:1:53]} 29. Kd3 {[%emt 0:0:11]} b5 {[%emt 0:6:5]} 30. axb5 {[%emt 0:0:6]} cxb5 {[%emt 0:0:1]} 31. h4 {[%emt 0:1:9]} h5 {[%emt 0:2:43]} 32. Bd4 {[%emt 0:8:22]} g6 {[%emt 0:0:14]} 33. Bf6 {[%emt 0:0:26]} Ba5 {[%emt 0:2:51]} 34. g4 {[%emt 0:1:20]} Bc7 {[%emt 0:1:43]} 35. Kc3 {[%emt 0:1:0]} Be5+ {[%emt 0:0:49]} 36. Bxe5 {[%emt 0:0:1]} Kxe5 {[%emt 0:0:1]} 37. gxh5 {[%emt 0:0:2]} gxh5 {[%emt 0:0:2]} 38. Kb4 {[%emt 0:0:12]} Kf4 {[%emt 0:0:4]} 39. Kxb5 {[%emt 0:0:3]} Kxf3 {[%emt 0:0:8]} 40. Kc4 {[%emt 0:0:4]} Kg3 {[%emt 0:0:6]} 41. Kd3 {[%emt 0:30:4]} Kxh4 {[%emt 0:30:5]} 42. Ke2 {[%emt 0:0:4]} Kg3 {[%emt 0:0:4]} 43. Kf1 {[%emt 0:0:3]} 1/2-1/2

[Event "56th Biel Festival MTO 2023"]
[White "Perkampus,Laurin"]
[Black "Schnell,Simon"]
[Site "Biel"]
[Round "7.46"]
[Annotator "ChessBase"]
[Result "1-0"]
[Date "2023.07.25"]
[WhiteElo "2197"]
[BlackElo "2029"]
[PlyCount "105"]
[TimeControl "60"]

1. d4 {[%emt 0:0:0]} Nf6 {[%emt 0:0:0]} 2. c4 {[%emt 0:0:0]} g6 {[%emt 0:0:0]} 3. Nc3 {[%emt 0:0:0]} d5 {[%emt 0:0:0]} 4. Nf3 {[%emt 0:0:0]} Bg7 {[%emt 0:0:0]} 5. Bf4 {[%emt 0:0:0]} c5 {[%emt 0:0:0]} 6. dxc5 {[%emt 0:0:0]} Qa5 {[%emt 0:0:0]} 7. cxd5 {[%emt 0:0:0]} Nxd5 {[%emt 0:0:0]} 8. Qxd5 {[%emt 0:0:0]} Bxc3+ {[%emt 0:0:0]} 9. Bd2 {[%emt 0:0:0]} Bxd2+ {[%emt 0:0:5]} 10. Qxd2 {[%emt 0:0:0]} Qxd2+ {[%emt 0:2:33]} 11. Nxd2 {[%emt 0:0:35]} Na6 {[%emt 0:5:44]} 12. Rc1 {[%emt 0:3:0]} Be6 {[%emt 0:14:18]} 13. e4 {[%emt 0:27:13]} Nb4 {[%emt 0:23:10]} 14. a3 {[%emt 0:4:41]} Nc6 {[%emt 0:0:38]} 15. Bb5 {[%emt 0:5:24]} O-O {[%emt 0:3:6]} 16. Nf3 {[%emt 0:3:46]} Rfd8 {[%emt 0:6:34]} 17. Bxc6 {[%emt 0:6:35]} bxc6 {[%emt 0:0:54]} 18. O-O {[%emt 0:1:48]} f6 {[%emt 0:1:18]} 19. Rfd1 {[%emt 0:11:54]} Bb3 {[%emt 0:3:21]} 20. Rd4 {[%emt 0:2:58]} a5 {[%emt 0:8:43]} 21. Kf1 {[%emt 0:10:58]} Rab8 {[%emt 0:5:1]} 22. Ke2 {[%emt 0:1:14]} e5 {[%emt 0:6:43]} 23. Rxd8+ {[%emt 0:0:38]} Rxd8 {[%emt 0:0:5]} 24. Nd2 {[%emt 0:0:14]} Be6 {[%emt 0:1:4]} 25. b3 {[%emt 0:8:36]} Rb8 {[%emt 0:3:4]} 26. Rc3 {[%emt 0:0:21]} Kf7 {[%emt 0:0:30]} 27. Kd1 {[%emt 0:2:12]} f5 {[%emt 0:3:45]} 28. exf5 {[%emt 0:3:38]} gxf5 {[%emt 0:0:34]} 29. Kc2 {[%emt 0:0:21]} Bd5 {[%emt 0:1:44]} 30. Nc4 {[%emt 0:2:37]} Bxc4 {[%emt 0:1:19]} 31. Rxc4 {[%emt 0:2:8]} Ke6 {[%emt 0:0:22]} 32. Rh4 {[%emt 0:0:42]} Rb7 {[%emt 0:4:41]} 33. Kc3 {[%emt 0:0:28]} Kd5 {[%emt 0:1:11]} 34. b4 {[%emt 0:0:11]} axb4+ {[%emt 0:0:7]} 35. axb4 {[%emt 0:0:6]} e4 {[%emt 0:6:8]} 36. Rh6 {[%emt 0:0:55]} Rc7 {[%emt 0:0:32]} 37. g3 {[%emt 0:1:29]} Ke5 {[%emt 0:0:34]} 38. Kc4 {[%emt 0:1:49]} Ra7 {[%emt 0:1:7]} 39. Kb3 {[%emt 0:2:15]} Rc7 {[%emt 0:0:25]} 40. Rd6 {[%emt 0:0:49]} f4 {[%emt 0:0:35]} 41. gxf4+ {[%emt 0:0:0]} Kxf4 {[%emt 0:0:0]} 42. b5 {[%emt 0:5:44]} cxb5 {[%emt 0:0:0]} 43. Kb4 {[%emt 0:0:34]} Ke5 {[%emt 0:0:0]} 44. Rd2 {[%emt 0:5:6]} Rc8 {[%emt 0:0:0]} 45. Kxb5 {[%emt 0:0:34]} Rb8+ {[%emt 0:0:0]} 46. Kc6 {[%emt 0:0:52]} Rb3 {[%emt 0:0:0]} 47. Kc7 {[%emt 0:4:33]} Rd3 {[%emt 0:0:0]} 48. Rc2 {[%emt 0:0:23]} Rf3 {[%emt 0:0:47]} 49. c6 {[%emt 0:1:21]} Kd5 {[%emt 0:0:38]} 50. Kb7 {[%emt 0:0:48]} Rb3+ {[%emt 0:1:38]} 51. Kc8 {[%emt 0:0:7]} Rd3 {[%emt 0:0:50]} 52. c7 {[%emt 0:1:25]} Rf3 {[%emt 0:0:5]} 53. Kd7 {[%emt 0:1:0]} 1-0

[Event "56th Biel Festival MTO 2023"]
[White "Papaux,Steve"]
[Black "Giacomini,Hector"]
[Site "Biel"]
[Round "7.47"]
[Annotator "ChessBase"]
[Result "1/2-1/2"]
[Date "2023.07.25"]
[WhiteElo "2064"]
[BlackElo "2126"]
[PlyCount "81"]
[TimeControl "60"]

1. d4 {[%emt 0:0:0]} d5 {[%emt 0:0:0]} 2. c4 {[%emt 0:0:0]} e6 {[%emt 0:0:0]} 3. Nf3 {[%emt 0:0:0]} Nf6 {[%emt 0:0:0]} 4. g3 {[%emt 0:0:0]} dxc4 {[%emt 0:0:0]} 5. Bg2 {[%emt 0:0:0]} c5 {[%emt 0:0:0]} 6. O-O {[%emt 0:0:0]} Nc6 {[%emt 0:0:0]} 7. Ne5 {[%emt 0:0:0]} Bd7 {[%emt 0:0:0]} 8. Na3 {[%emt 0:0:0]} cxd4 {[%emt 0:0:0]} 9. Naxc4 {[%emt 0:0:0]} Be7 {[%emt 0:0:0]} 10. Bf4 {[%emt 0:0:0]} Nd5 {[%emt 0:0:0]} 11. Nxc6 {[%emt 0:0:0]} Bxc6 {[%emt 0:0:0]} 12. Ne5 {[%emt 0:0:0]} Nxf4 {[%emt 0:9:6]} 13. Nxc6 {[%emt 0:0:0]} Qd6 {[%emt 0:7:26]} 14. gxf4 {[%emt 0:5:39]} bxc6 {[%emt 0:0:14]} 15. Qa4 {[%emt 0:0:31]} O-O {[%emt 0:2:31]} 16. Rfd1 {[%emt 0:0:38]} Bf6 {[%emt 0:6:37]} 17. e3 {[%emt 0:2:27]} Rab8 {[%emt 0:3:26]} 18. b3 {[%emt 0:7:50]} Qe7 {[%emt 0:7:40]} 19. Rac1 {[%emt 0:4:4]} c5 {[%emt 0:1:40]} 20. Qa5 {[%emt 0:0:48]} Rfc8 {[%emt 0:1:19]} 21. Rc4 {[%emt 0:0:15]} dxe3 {[%emt 0:9:39]} 22. fxe3 {[%emt 0:3:29]} g6 {[%emt 0:2:50]} 23. Rdc1 {[%emt 0:1:2]} Qd7 {[%emt 0:4:31]} 24. Rxc5 {[%emt 0:2:52]} Rxc5 {[%emt 0:0:9]} 25. Qxc5 {[%emt 0:0:8]} Qd2 {[%emt 0:0:44]} 26. Rc2 {[%emt 0:1:0]} Qd1+ {[%emt 0:10:23]} 27. Bf1 {[%emt 0:0:10]} Rd8 {[%emt 0:0:46]} 28. Qc4 {[%emt 0:7:11]} Kg7 {[%emt 0:4:49]} 29. Qe2 {[%emt 0:0:32]} Qb1 {[%emt 0:0:26]} 30. Rd2 {[%emt 0:0:50]} Rc8 {[%emt 0:9:14]} 31. Qd3 {[%emt 0:5:10]} Qc1 {[%emt 0:3:2]} 32. Rd1 {[%emt 0:1:49]} Qc5 {[%emt 0:0:45]} 33. Qe4 {[%emt 0:2:5]} Rd8 {[%emt 0:8:23]} 34. Rxd8 {[%emt 0:1:10]} Bxd8 {[%emt 0:0:3]} 35. Bc4 {[%emt 0:0:36]} Bb6 {[%emt 0:0:42]} 36. Kf2 {[%emt 0:0:9]} Qh5 {[%emt 0:0:53]} 37. Kg3 {[%emt 0:1:55]} Qa5 {[%emt 0:2:19]} 38. Kf3 {[%emt 0:1:49]} Qh5+ {[%emt 0:1:38]} 39. Kg3 {[%emt 0:0:22]} Qa5 {[%emt 0:0:44]} 40. Kf3 {[%emt 0:0:41]} Qh5+ {[%emt 0:4:2]} 41. Kg3 {[%emt 0:30:23]} 1/2-1/2

[Event "56th Biel Festival MTO 2023"]
[White "Samant Aditya S"]
[Black "Bu,Xiangzhi"]
[Site "Biel"]
[Round "8.1"]
[Annotator "ChessBase"]
[Result "1/2-1/2"]
[Date "2023.07.26"]
[WhiteElo "2510"]
[BlackElo "2676"]
[PlyCount "48"]
[TimeControl "60"]

1. e4 {[%emt 0:0:0]} e5 {[%emt 0:0:0]} 2. Nf3 {[%emt 0:0:0]} Nc6 {[%emt 0:0:0]} 3. Bb5 {[%emt 0:0:0]} a6 {[%emt 0:0:0]} 4. Ba4 {[%emt 0:0:0]} Nf6 {[%emt 0:0:0]} 5. O-O {[%emt 0:0:0]} b5 {[%emt 0:0:0]} 6. Bb3 {[%emt 0:0:0]} Bc5 {[%emt 0:0:0]} 7. a4 {[%emt 0:0:0]} Bb7 {[%emt 0:0:0]} 8. d3 {[%emt 0:0:0]} O-O {[%emt 0:0:0]} 9. Nc3 {[%emt 0:0:0]} Na5 {[%emt 0:0:0]} 10. axb5 {[%emt 0:0:52]} Nxb3 {[%emt 0:0:0]} 11. cxb3 {[%emt 0:0:8]} axb5 {[%emt 0:0:0]} 12. Rxa8 {[%emt 0:0:9]} Bxa8 {[%emt 0:0:29]} 13. Nxe5 {[%emt 0:1:10]} d5 {[%emt 0:10:1]} 14. Nxb5 {[%emt 0:37:31]} dxe4 {[%emt 0:8:14]} 15. d4 {[%emt 0:1:0]} Bb6 {[%emt 0:0:12]} 16. Nc4 {[%emt 0:6:0]} Bc6 {[%emt 0:24:44]} 17. Nc3 {[%emt 0:12:53]} Bxd4 {[%emt 0:1:11]} 18. Bf4 {[%emt 0:12:46]} Qd7 {[%emt 0:19:7]} 19. Ne5 {[%emt 0:2:42]} Bxe5 {[%emt 0:0:4]} 20. Bxe5 {[%emt 0:0:4]} Qe7 {[%emt 0:0:16]} 21. Bf4 {[%emt 0:4:48]} Rb8 {[%emt 0:4:43]} 22. Qc2 {[%emt 0:5:38]} h6 {[%emt 0:3:3]} 23. Rd1 {[%emt 0:1:34]} Rb7 {[%emt 0:2:28]} 24. Rd4 {[%emt 0:3:11]} Qe6 {[%emt 0:11:19]} 1/2-1/2

[Event "56th Biel Festival MTO 2023"]
[White "Quesada Perez,Luis Ernesto"]
[Black "Liu,Yan"]
[Site "Biel"]
[Round "8.2"]
[Annotator "ChessBase"]
[Result "1/2-1/2"]
[Date "2023.07.26"]
[WhiteElo "2553"]
[BlackElo "2542"]
[PlyCount "84"]
[TimeControl "60"]

1. d4 {[%emt 0:0:0]} Nf6 {[%emt 0:0:0]} 2. c4 {[%emt 0:0:0]} e6 {[%emt 0:0:0]} 3. Nf3 {[%emt 0:0:0]} b6 {[%emt 0:0:0]} 4. g3 {[%emt 0:0:0]} Bb7 {[%emt 0:0:0]} 5. Bg2 {[%emt 0:0:0]} Bb4+ {[%emt 0:0:0]} 6. Bd2 {[%emt 0:0:0]} c5 {[%emt 0:0:0]} 7. Bxb4 {[%emt 0:0:0]} cxb4 {[%emt 0:0:0]} 8. O-O {[%emt 0:0:0]} O-O {[%emt 0:0:0]} 9. Nbd2 {[%emt 0:0:0]} d6 {[%emt 0:0:0]} 10. Qb3 {[%emt 0:0:0]} a5 {[%emt 0:0:0]} 11. a3 {[%emt 0:0:0]} bxa3 {[%emt 0:0:0]} 12. bxa3 {[%emt 0:0:0]} Nbd7 {[%emt 0:0:0]} 13. Rfc1 {[%emt 0:0:0]} Qc7 {[%emt 0:2:45]} 14. Ne1 {[%emt 0:4:37]} Bxg2 {[%emt 0:2:19]} 15. Nxg2 {[%emt 0:0:37]} e5 {[%emt 0:5:26]} 16. Nf3 {[%emt 0:0:55]} exd4 {[%emt 0:5:14]} 17. Nxd4 {[%emt 0:1:13]} Qc5 {[%emt 0:0:21]} 18. Rd1 {[%emt 0:25:41]} a4 {[%emt 0:13:19]} 19. Qb5 {[%emt 0:0:47]} Ra5 {[%emt 0:14:0]} 20. Qxc5 {[%emt 0:0:43]} Rxc5 {[%emt 0:0:38]} 21. Ne3 {[%emt 0:0:8]} g6 {[%emt 0:8:35]} 22. Nf3 {[%emt 0:8:51]} Ne4 {[%emt 0:8:13]} 23. Rd4 {[%emt 0:5:36]} f5 {[%emt 0:1:4]} 24. Nd2 {[%emt 0:17:39]} Nxd2 {[%emt 0:5:15]} 25. Rxd2 {[%emt 0:0:11]} Ne5 {[%emt 0:0:12]} 26. Rd4 {[%emt 0:7:59]} Rfc8 {[%emt 0:1:26]} 27. Rxd6 {[%emt 0:1:36]} Nxc4 {[%emt 0:0:13]} 28. Nxc4 {[%emt 0:0:3]} Rxc4 {[%emt 0:0:7]} 29. Rxb6 {[%emt 0:0:27]} Rc1+ {[%emt 0:0:27]} 30. Rxc1 {[%emt 0:0:3]} Rxc1+ {[%emt 0:0:4]} 31. Kg2 {[%emt 0:0:10]} Rc3 {[%emt 0:0:7]} 32. Rb8+ {[%emt 0:5:43]} Kg7 {[%emt 0:0:7]} 33. Rb7+ {[%emt 0:0:4]} Kg8 {[%emt 0:1:51]} 34. h4 {[%emt 0:0:35]} h5 {[%emt 0:1:49]} 35. e3 {[%emt 0:1:15]} Rxa3 {[%emt 0:0:6]} 36. Ra7 {[%emt 0:0:18]} Ra2 {[%emt 0:0:54]} 37. Kf3 {[%emt 0:0:13]} Kf8 {[%emt 0:1:31]} 38. Kf4 {[%emt 0:0:23]} Rxf2+ {[%emt 0:0:9]} 39. Kg5 {[%emt 0:0:4]} Rf3 {[%emt 0:0:28]} 40. Kxg6 {[%emt 0:1:1]} Rxg3+ {[%emt 0:0:26]} 41. Kxf5 {[%emt 0:30:31]} Rxe3 {[%emt 0:30:15]} 42. Rxa4 {[%emt 0:0:6]} Kg7 {[%emt 0:0:25]} 1/2-1/2